[Event "Titled Tuesday Blitz January 17 Early 2023"]
[White "Kuzmin, Roman"]
[Black "Mirzoev, Azer"]
[WhiteFideId "44134932"]
[BlackFideId "13400304"]
[WhiteElo "2198"]
[BlackElo "2416"]
[Result "0-1"]
[Round "03"]
[TimeControl "180+2"]
[Date "2023.01.17"]
[WhiteClock "0:00:06"]
[BlackClock "0:00:37"]

1. e4 {[%clk 0:03:00]}  c5 {[%clk 0:03:00]} 2. Nf3 {[%clk 0:03:00]}  e6 {[%clk 0:03:00]} 3. d4 {[%clk 0:03:01]}  cxd4 {[%clk 0:03:00]} 4. Nxd4 {[%clk 0:03:02]}  a6 {[%clk 0:03:01]} 5. Bd3 {[%clk 0:03:00]}  Nc6 {[%clk 0:02:59]} 6. Nxc6 {[%clk 0:02:59]}  bxc6 {[%clk 0:02:59]} 7. c4 {[%clk 0:03:00]}  Nf6 {[%clk 0:02:58]} 8. O-O {[%clk 0:03:00]}  d5 {[%clk 0:02:58]} 9. Nc3 {[%clk 0:02:46]}  Bb7 {[%clk 0:02:52]} 10. Qc2 {[%clk 0:02:16]}  Be7 {[%clk 0:02:44]} 11. Bd2 {[%clk 0:02:12]}  h6 {[%clk 0:02:36]} 12. Rae1 {[%clk 0:02:07]}  O-O {[%clk 0:02:23]} 13. e5 {[%clk 0:02:07]}  Nd7 {[%clk 0:02:23]} 14. f4 {[%clk 0:02:01]}  Nc5 {[%clk 0:02:20]} 15. Be2 {[%clk 0:01:52]}  a5 {[%clk 0:02:18]} 16. Be3 {[%clk 0:01:42]}  Ba6 {[%clk 0:02:05]} 17. Rd1 {[%clk 0:01:26]}  Qb8 {[%clk 0:02:04]} 18. Kh1 {[%clk 0:01:11]}  Rd8 {[%clk 0:01:31]} 19. cxd5 {[%clk 0:01:01]}  cxd5 {[%clk 0:01:28]} 20. Bxc5 {[%clk 0:00:52]}  Bxc5 {[%clk 0:01:24]} 21. Bxa6 {[%clk 0:00:52]}  Rxa6 {[%clk 0:01:21]} 22. Nxd5 {[%clk 0:00:53]}  Rc8 {[%clk 0:01:17]} 23. Qe2 {[%clk 0:00:37]}  Ra7 {[%clk 0:01:12]} 24. Nc3 {[%clk 0:00:35]}  Bb4 {[%clk 0:01:10]} 25. Ne4 {[%clk 0:00:34]}  Rac7 {[%clk 0:01:08]} 26. a3 {[%clk 0:00:14]}  Rc2 {[%clk 0:01:06]} 27. Rd8+ {[%clk 0:00:14]}  Rxd8 {[%clk 0:01:01]} 28. Qxc2 {[%clk 0:00:15]}  Bf8 {[%clk 0:01:02]} 29. Rd1 {[%clk 0:00:14]}  Qxb2 {[%clk 0:00:57]} 30. Qa4 {[%clk 0:00:07]}  Qxa3 {[%clk 0:00:49]} 31. Qc2 {[%clk 0:00:07]}  Qb2 {[%clk 0:00:41]} 32. Qa4 {[%clk 0:00:06]}  Qb4 {[%clk 0:00:37]} 0-1


[Site "https://www.chess.com"]

[Event "Titled Tuesday Blitz January 17 Early 2023"]
[White "Krstulovic, Alex"]
[Black "Volkov, Maksim"]
[WhiteFideId "760056"]
[BlackFideId "54123070"]
[WhiteElo "2428"]
[BlackElo "2258"]
[Result "0-1"]
[Round "03"]
[TimeControl "180+2"]
[Date "2023.01.17"]
[WhiteClock "0:00:06"]
[BlackClock "0:00:18"]

1. e4 {[%clk 0:02:56]}  c5 {[%clk 0:02:58]} 2. Nc3 {[%clk 0:02:55]}  d6 {[%clk 0:02:57]} 3. f4 {[%clk 0:02:54]}  Nc6 {[%clk 0:02:53]} 4. Nf3 {[%clk 0:02:54]}  g6 {[%clk 0:02:53]} 5. Bc4 {[%clk 0:02:53]}  Nd4 {[%clk 0:02:46]} 6. O-O {[%clk 0:02:24]}  Bg7 {[%clk 0:02:44]} 7. d3 {[%clk 0:02:24]}  h5 {[%clk 0:02:43]} 8. f5 {[%clk 0:02:22]}  Nxf3+ {[%clk 0:02:11]} 9. Qxf3 {[%clk 0:02:20]}  Nf6 {[%clk 0:02:04]} 10. fxg6 {[%clk 0:02:17]}  fxg6 {[%clk 0:02:05]} 11. Nd5 {[%clk 0:02:14]}  Bg4 {[%clk 0:02:02]} 12. Qg3 {[%clk 0:02:04]}  Nxd5 {[%clk 0:01:58]} 13. Bxd5 {[%clk 0:02:01]}  Qd7 {[%clk 0:01:42]} 14. h3 {[%clk 0:01:37]}  Bd4+ {[%clk 0:01:35]} 15. Kh1 {[%clk 0:01:34]}  O-O-O {[%clk 0:01:34]} 16. c3 {[%clk 0:01:26]}  Be5 {[%clk 0:01:24]} 17. Bf4 {[%clk 0:01:25]}  Bxf4 {[%clk 0:01:20]} 18. Qxf4 {[%clk 0:01:24]}  Be2 {[%clk 0:01:19]} 19. Rf2 {[%clk 0:00:57]}  Bxd3 {[%clk 0:01:19]} 20. Rd1 {[%clk 0:00:53]}  Bb5 {[%clk 0:01:17]} 21. e5 {[%clk 0:00:52]}  Kb8 {[%clk 0:01:03]} 22. Qf7 {[%clk 0:00:41]}  dxe5 {[%clk 0:00:58]} 23. Qxg6 {[%clk 0:00:36]}  Qc7 {[%clk 0:00:44]} 24. Rfd2 {[%clk 0:00:32]}  h4 {[%clk 0:00:41]} 25. Bf3 {[%clk 0:00:25]}  Rxd2 {[%clk 0:00:35]} 26. Rxd2 {[%clk 0:00:26]}  Rd8 {[%clk 0:00:34]} 27. Rxd8+ {[%clk 0:00:25]}  Qxd8 {[%clk 0:00:35]} 28. Qe4 {[%clk 0:00:25]}  Qc7 {[%clk 0:00:27]} 29. Qxh4 {[%clk 0:00:23]}  a5 {[%clk 0:00:27]} 30. Qh8+ {[%clk 0:00:19]}  Ka7 {[%clk 0:00:27]} 31. h4 {[%clk 0:00:19]}  Bd3 {[%clk 0:00:27]} 32. h5 {[%clk 0:00:18]}  e4 {[%clk 0:00:27]} 33. Bg4 {[%clk 0:00:18]}  e3 {[%clk 0:00:26]} 34. Qh6 {[%clk 0:00:13]}  Qg3 {[%clk 0:00:25]} 35. Qe6 {[%clk 0:00:09]}  Qh4+ {[%clk 0:00:19]} 36. Bh3 {[%clk 0:00:06]}  e2 {[%clk 0:00:18]} 0-1


[Site "https://www.chess.com"]

[Event "Titled Tuesday Blitz January 17 Early 2023"]
[White "Lewtak, Damian"]
[Black "Sanchez, Robert"]
[WhiteFideId "1141724"]
[BlackFideId "2034360"]
[WhiteElo "2381"]
[BlackElo "1966"]
[Result "1-0"]
[Round "03"]
[TimeControl "180+2"]
[Date "2023.01.17"]
[WhiteClock "0:00:10"]
[BlackClock "0:00:01"]

1. e4 {[%clk 0:02:58]}  e6 {[%clk 0:02:59]} 2. Nf3 {[%clk 0:02:57]}  c5 {[%clk 0:02:58]} 3. b4 {[%clk 0:02:53]}  d5 {[%clk 0:02:55]} 4. exd5 {[%clk 0:02:52]}  Qxd5 {[%clk 0:02:54]} 5. Nc3 {[%clk 0:02:49]}  Qd8 {[%clk 0:02:53]} 6. bxc5 {[%clk 0:02:49]}  Bxc5 {[%clk 0:02:53]} 7. d4 {[%clk 0:02:49]}  Bd6 {[%clk 0:02:52]} 8. Bd3 {[%clk 0:02:47]}  Nf6 {[%clk 0:02:53]} 9. O-O {[%clk 0:02:47]}  h6 {[%clk 0:02:53]} 10. Qe2 {[%clk 0:02:47]}  O-O {[%clk 0:02:53]} 11. Ne4 {[%clk 0:02:46]}  Nxe4 {[%clk 0:02:45]} 12. Qxe4 {[%clk 0:02:47]}  f5 {[%clk 0:02:45]} 13. Qe2 {[%clk 0:02:43]}  Nc6 {[%clk 0:02:41]} 14. c4 {[%clk 0:02:31]}  Bd7 {[%clk 0:02:40]} 15. Bb2 {[%clk 0:02:23]}  Rc8 {[%clk 0:02:17]} 16. d5 {[%clk 0:02:08]}  exd5 {[%clk 0:02:16]} 17. cxd5 {[%clk 0:02:09]}  Nb4 {[%clk 0:02:13]} 18. Ne5 {[%clk 0:01:55]}  Re8 {[%clk 0:01:59]} 19. Rfe1 {[%clk 0:01:43]}  Nxd3 {[%clk 0:01:20]} 20. Qxd3 {[%clk 0:01:33]}  Qb6 {[%clk 0:01:01]} 21. Nxd7 {[%clk 0:01:04]}  Qxb2 {[%clk 0:01:00]} 22. Qxf5 {[%clk 0:01:04]}  Qd2 {[%clk 0:00:29]} 23. Nf6+ {[%clk 0:00:49]}  gxf6 {[%clk 0:00:29]} 24. Qg6+ {[%clk 0:00:49]}  Kf8 {[%clk 0:00:25]} 25. Qxf6+ {[%clk 0:00:49]}  Kg8 {[%clk 0:00:25]} 26. Qg6+ {[%clk 0:00:50]}  Kf8 {[%clk 0:00:24]} 27. Qxd6+ {[%clk 0:00:50]}  Kg8 {[%clk 0:00:24]} 28. Rxe8+ {[%clk 0:00:41]}  Rxe8 {[%clk 0:00:21]} 29. Qg6+ {[%clk 0:00:19]}  Kf8 {[%clk 0:00:19]} 30. Qf6+ {[%clk 0:00:16]}  Kg8 {[%clk 0:00:20]} 31. Qg6+ {[%clk 0:00:17]}  Kf8 {[%clk 0:00:20]} 32. Qf5+ {[%clk 0:00:17]}  Kg8 {[%clk 0:00:20]} 33. g3 {[%clk 0:00:17]}  Rf8 {[%clk 0:00:09]} 34. Qg6+ {[%clk 0:00:16]}  Kh8 {[%clk 0:00:09]} 35. Rf1 {[%clk 0:00:14]}  Qxd5 {[%clk 0:00:09]} 36. Qxh6+ {[%clk 0:00:15]}  Kg8 {[%clk 0:00:09]} 37. Qg6+ {[%clk 0:00:15]}  Kh8 {[%clk 0:00:09]} 38. h4 {[%clk 0:00:16]}  Qxa2 {[%clk 0:00:07]} 39. Qh6+ {[%clk 0:00:15]}  Kg8 {[%clk 0:00:07]} 40. Qg5+ {[%clk 0:00:15]}  Kh8 {[%clk 0:00:07]} 41. Qe5+ {[%clk 0:00:15]}  Kg8 {[%clk 0:00:06]} 42. Qe7 {[%clk 0:00:11]}  Rf7 {[%clk 0:00:05]} 43. Qe8+ {[%clk 0:00:11]}  Kg7 {[%clk 0:00:05]} 44. h5 {[%clk 0:00:11]}  Qd5 {[%clk 0:00:01]} 45. Qe2 {[%clk 0:00:10]} 1-0


[Site "https://www.chess.com"]

[Event "Titled Tuesday Blitz January 17 Early 2023"]
[White "Tymrakiewicz, Rafal"]
[Black "Subelj, Jan"]
[WhiteFideId "1108832"]
[BlackFideId "14618583"]
[WhiteElo "2144"]
[BlackElo "2513"]
[Result "1-0"]
[Round "03"]
[TimeControl "180+2"]
[Date "2023.01.17"]
[WhiteClock "0:00:02"]
[BlackClock "0:00:12"]

1. d4 {[%clk 0:02:58]}  b6 {[%clk 0:02:57]} 2. e4 {[%clk 0:02:57]}  Bb7 {[%clk 0:02:57]} 3. Nd2 {[%clk 0:02:57]}  e6 {[%clk 0:02:56]} 4. f4 {[%clk 0:02:57]}  c5 {[%clk 0:02:56]} 5. c3 {[%clk 0:02:57]}  cxd4 {[%clk 0:02:51]} 6. cxd4 {[%clk 0:02:57]}  Nf6 {[%clk 0:02:51]} 7. Bd3 {[%clk 0:02:55]}  Bb4 {[%clk 0:02:50]} 8. Qe2 {[%clk 0:02:49]}  Qc7 {[%clk 0:02:41]} 9. a3 {[%clk 0:02:42]}  Be7 {[%clk 0:02:40]} 10. Ngf3 {[%clk 0:02:29]}  Qxf4 {[%clk 0:01:45]} 11. e5 {[%clk 0:02:01]}  Ng8 {[%clk 0:01:06]} 12. Ne4 {[%clk 0:02:00]}  Qg4 {[%clk 0:01:05]} 13. h3 {[%clk 0:01:51]}  Qh5 {[%clk 0:01:00]} 14. g4 {[%clk 0:01:43]}  Qg6 {[%clk 0:00:59]} 15. Nd6+ {[%clk 0:01:42]}  Bxd6 {[%clk 0:01:00]} 16. Bxg6 {[%clk 0:01:43]}  hxg6 {[%clk 0:01:00]} 17. exd6 {[%clk 0:01:41]}  Nf6 {[%clk 0:01:00]} 18. Bf4 {[%clk 0:01:17]}  Nxg4 {[%clk 0:00:54]} 19. Kd2 {[%clk 0:01:12]}  Nf6 {[%clk 0:00:52]} 20. Rac1 {[%clk 0:01:06]}  Nc6 {[%clk 0:00:51]} 21. Be5 {[%clk 0:00:39]}  O-O-O {[%clk 0:00:37]} 22. Bxf6 {[%clk 0:00:30]}  gxf6 {[%clk 0:00:38]} 23. d5 {[%clk 0:00:30]}  exd5 {[%clk 0:00:39]} 24. Nd4 {[%clk 0:00:27]}  Rhe8 {[%clk 0:00:35]} 25. Qf3 {[%clk 0:00:15]}  f5 {[%clk 0:00:26]} 26. Qxd5 {[%clk 0:00:11]}  Kb8 {[%clk 0:00:26]} 27. Nxc6+ {[%clk 0:00:11]}  dxc6 {[%clk 0:00:27]} 28. Qxf7 {[%clk 0:00:07]}  Rxd6+ {[%clk 0:00:25]} 29. Kc2 {[%clk 0:00:07]}  Re2+ {[%clk 0:00:23]} 30. Kb1 {[%clk 0:00:07]}  Rdd2 {[%clk 0:00:24]} 31. Qg8+ {[%clk 0:00:06]}  Bc8 {[%clk 0:00:23]} 32. Qh8 {[%clk 0:00:03]}  f4 {[%clk 0:00:21]} 33. Rhd1 {[%clk 0:00:03]}  f3 {[%clk 0:00:18]} 34. Rxd2 {[%clk 0:00:03]}  Rxd2 {[%clk 0:00:19]} 35. Rxc6 {[%clk 0:00:02]}  Rd1+ {[%clk 0:00:14]} 36. Ka2 {[%clk 0:00:02]}  Rd8 {[%clk 0:00:11]} 37. Qxd8 {[%clk 0:00:02]}  Kb7 {[%clk 0:00:12]} 38. Qxc8# {[%clk 0:00:02]} 1-0


[Site "https://www.chess.com"]

[Event "Titled Tuesday Blitz January 17 Early 2023"]
[White "Atakhan, Abtin"]
[Black "Begunov, Konstantin"]
[WhiteFideId "22502203"]
[BlackFideId "4118510"]
[WhiteElo "2422"]
[BlackElo "2325"]
[Result "0-1"]
[Round "03"]
[TimeControl "180+2"]
[Date "2023.01.17"]
[WhiteClock "0:00:06"]
[BlackClock "0:00:21"]

1. c4 {[%clk 0:03:00]}  c6 {[%clk 0:02:59]} 2. Nf3 {[%clk 0:02:59]}  d5 {[%clk 0:03:00]} 3. d4 {[%clk 0:03:00]}  Nf6 {[%clk 0:03:00]} 4. Nc3 {[%clk 0:02:59]}  dxc4 {[%clk 0:03:00]} 5. a4 {[%clk 0:02:58]}  Bg4 {[%clk 0:03:01]} 6. Ne5 {[%clk 0:02:52]}  Bh5 {[%clk 0:03:01]} 7. f3 {[%clk 0:02:49]}  Nfd7 {[%clk 0:03:01]} 8. Nxc4 {[%clk 0:02:48]}  e5 {[%clk 0:03:01]} 9. Nxe5 {[%clk 0:02:43]}  Nxe5 {[%clk 0:03:00]} 10. dxe5 {[%clk 0:02:43]}  Nd7 {[%clk 0:03:01]} 11. Bf4 {[%clk 0:02:30]}  Bb4 {[%clk 0:03:00]} 12. e3 {[%clk 0:02:25]}  Qe7 {[%clk 0:02:53]} 13. Qb3 {[%clk 0:02:18]}  a5 {[%clk 0:02:41]} 14. e6 {[%clk 0:02:10]}  fxe6 {[%clk 0:02:37]} 15. e4 {[%clk 0:02:09]}  e5 {[%clk 0:02:32]} 16. Be3 {[%clk 0:02:09]}  Nc5 {[%clk 0:02:07]} 17. Qc2 {[%clk 0:02:08]}  Bf7 {[%clk 0:02:01]} 18. Be2 {[%clk 0:01:58]}  O-O {[%clk 0:01:40]} 19. O-O {[%clk 0:01:57]}  Rad8 {[%clk 0:01:37]} 20. Kh1 {[%clk 0:01:54]}  Nb3 {[%clk 0:01:04]} 21. Rad1 {[%clk 0:01:50]}  Nd4 {[%clk 0:01:04]} 22. Bxd4 {[%clk 0:01:50]}  exd4 {[%clk 0:01:04]} 23. Nb1 {[%clk 0:01:50]}  c5 {[%clk 0:00:58]} 24. Bc4 {[%clk 0:01:49]}  Bxc4 {[%clk 0:00:42]} 25. Qxc4+ {[%clk 0:01:50]}  Qf7 {[%clk 0:00:42]} 26. b3 {[%clk 0:01:42]}  Qxc4 {[%clk 0:00:37]} 27. bxc4 {[%clk 0:01:43]}  d3 {[%clk 0:00:37]} 28. e5 {[%clk 0:01:15]}  Rd4 {[%clk 0:00:36]} 29. Nd2 {[%clk 0:01:16]}  Rfd8 {[%clk 0:00:29]} 30. Ne4 {[%clk 0:00:59]}  Rxc4 {[%clk 0:00:27]} 31. Nd6 {[%clk 0:00:59]}  Rd4 {[%clk 0:00:26]} 32. Nxb7 {[%clk 0:00:36]}  Re8 {[%clk 0:00:22]} 33. f4 {[%clk 0:00:27]}  c4 {[%clk 0:00:23]} 34. Rc1 {[%clk 0:00:06]}  c3 {[%clk 0:00:22]} 35. Nd6 {[%clk 0:00:06]}  Bxd6 {[%clk 0:00:21]} 36. exd6 {[%clk 0:00:06]}  c2 {[%clk 0:00:21]} 0-1


[Site "https://www.chess.com"]

[Event "Titled Tuesday Blitz January 17 Early 2023"]
[White "Shuvalova, Polina"]
[Black "Pasaribu, Ivan Maxmillian Putra"]
[WhiteFideId "24171760"]
[BlackFideId "7104219"]
[WhiteElo "2484"]
[BlackElo "2229"]
[Result "1-0"]
[Round "03"]
[TimeControl "180+2"]
[Date "2023.01.17"]
[WhiteClock "0:00:13"]
[BlackClock "0:00:08"]

1. d4 {[%clk 0:03:00]}  d5 {[%clk 0:02:58]} 2. Nf3 {[%clk 0:03:00]}  Nf6 {[%clk 0:02:58]} 3. Bf4 {[%clk 0:03:00]}  c5 {[%clk 0:02:56]} 4. e3 {[%clk 0:03:00]}  e6 {[%clk 0:02:57]} 5. Nbd2 {[%clk 0:02:59]}  Bd6 {[%clk 0:02:57]} 6. dxc5 {[%clk 0:02:56]}  Bxc5 {[%clk 0:02:57]} 7. c4 {[%clk 0:02:56]}  O-O {[%clk 0:02:56]} 8. Rc1 {[%clk 0:02:55]}  Be7 {[%clk 0:02:55]} 9. Be2 {[%clk 0:02:52]}  Nc6 {[%clk 0:02:55]} 10. O-O {[%clk 0:02:35]}  Nh5 {[%clk 0:02:54]} 11. Be5 {[%clk 0:02:29]}  Nxe5 {[%clk 0:02:53]} 12. Nxe5 {[%clk 0:02:29]}  Nf6 {[%clk 0:02:54]} 13. Ndf3 {[%clk 0:02:27]}  Bd7 {[%clk 0:02:23]} 14. cxd5 {[%clk 0:02:16]}  exd5 {[%clk 0:02:20]} 15. Nd4 {[%clk 0:01:56]}  Bd6 {[%clk 0:02:11]} 16. Nxd7 {[%clk 0:01:37]}  Qxd7 {[%clk 0:02:11]} 17. Bf3 {[%clk 0:01:36]}  Rfe8 {[%clk 0:02:04]} 18. Qb3 {[%clk 0:01:35]}  Be5 {[%clk 0:01:56]} 19. Rfd1 {[%clk 0:01:33]}  Rac8 {[%clk 0:01:54]} 20. Rxc8 {[%clk 0:01:26]}  Rxc8 {[%clk 0:01:55]} 21. g3 {[%clk 0:01:26]}  h5 {[%clk 0:01:49]} 22. h4 {[%clk 0:01:25]}  g6 {[%clk 0:01:03]} 23. Kg2 {[%clk 0:01:19]}  Kg7 {[%clk 0:01:02]} 24. Ne2 {[%clk 0:01:15]}  Rd8 {[%clk 0:00:45]} 25. Rd3 {[%clk 0:01:14]}  Qf5 {[%clk 0:00:40]} 26. Rd1 {[%clk 0:00:55]}  Rd7 {[%clk 0:00:39]} 27. Nd4 {[%clk 0:00:52]}  Bxd4 {[%clk 0:00:39]} 28. Rxd4 {[%clk 0:00:52]}  Qe5 {[%clk 0:00:36]} 29. Qd3 {[%clk 0:00:46]}  Qe6 {[%clk 0:00:30]} 30. Qb5 {[%clk 0:00:45]}  a6 {[%clk 0:00:30]} 31. Qd3 {[%clk 0:00:45]}  Qe5 {[%clk 0:00:26]} 32. b4 {[%clk 0:00:45]}  Rd6 {[%clk 0:00:24]} 33. a4 {[%clk 0:00:45]}  Rd7 {[%clk 0:00:21]} 34. Qd2 {[%clk 0:00:44]}  g5 {[%clk 0:00:21]} 35. hxg5 {[%clk 0:00:43]}  Qxg5 {[%clk 0:00:22]} 36. a5 {[%clk 0:00:38]}  Kf8 {[%clk 0:00:19]} 37. Rf4 {[%clk 0:00:37]}  Ke7 {[%clk 0:00:19]} 38. Qd4 {[%clk 0:00:37]}  Ke6 {[%clk 0:00:19]} 39. Qb6+ {[%clk 0:00:34]}  Ke7 {[%clk 0:00:19]} 40. Qc5+ {[%clk 0:00:32]}  Ke6 {[%clk 0:00:19]} 41. Qd4 {[%clk 0:00:32]}  Qe5 {[%clk 0:00:19]} 42. Qd3 {[%clk 0:00:28]}  Rd8 {[%clk 0:00:15]} 43. Bd1 {[%clk 0:00:21]}  Rg8 {[%clk 0:00:16]} 44. Bb3 {[%clk 0:00:20]}  Rg6 {[%clk 0:00:16]} 45. Bc2 {[%clk 0:00:16]}  Rg4 {[%clk 0:00:15]} 46. Qf5+ {[%clk 0:00:13]}  Qxf5 {[%clk 0:00:13]} 47. Bxf5+ {[%clk 0:00:13]}  Ke5 {[%clk 0:00:11]} 48. Bxg4 {[%clk 0:00:14]}  hxg4 {[%clk 0:00:12]} 49. Kf1 {[%clk 0:00:13]}  Ke6 {[%clk 0:00:11]} 50. Ke2 {[%clk 0:00:13]}  Ke5 {[%clk 0:00:12]} 51. Kd3 {[%clk 0:00:13]}  Ke6 {[%clk 0:00:08]} 52. Kd4 {[%clk 0:00:13]} 1-0


[Site "https://www.chess.com"]

[Event "Titled Tuesday Blitz January 17 Early 2023"]
[White "Kukula, Pawel"]
[Black "Dehtiarov, Roman"]
[WhiteFideId "1115081"]
[BlackFideId "14186640"]
[WhiteElo "2135"]
[BlackElo "2289"]
[Result "1-0"]
[Round "03"]
[TimeControl "180+2"]
[Date "2023.01.17"]
[WhiteClock "0:00:04"]
[BlackClock "0:00:01"]

1. c4 {[%clk 0:03:00]}  e5 {[%clk 0:02:54]} 2. Nc3 {[%clk 0:03:00]}  Nc6 {[%clk 0:02:55]} 3. Nf3 {[%clk 0:02:58]}  Nf6 {[%clk 0:02:55]} 4. d3 {[%clk 0:02:58]}  Bb4 {[%clk 0:02:55]} 5. Bd2 {[%clk 0:02:58]}  O-O {[%clk 0:02:56]} 6. g3 {[%clk 0:02:56]}  Bxc3 {[%clk 0:02:55]} 7. Bxc3 {[%clk 0:02:55]}  d6 {[%clk 0:02:56]} 8. Bg2 {[%clk 0:02:55]}  Be6 {[%clk 0:02:56]} 9. O-O {[%clk 0:02:55]}  Qd7 {[%clk 0:02:56]} 10. Re1 {[%clk 0:02:48]}  h6 {[%clk 0:02:55]} 11. b4 {[%clk 0:02:46]}  Ne7 {[%clk 0:02:55]} 12. a4 {[%clk 0:02:43]}  c6 {[%clk 0:02:51]} 13. Rb1 {[%clk 0:02:36]}  a6 {[%clk 0:02:47]} 14. c5 {[%clk 0:02:36]}  Ng6 {[%clk 0:02:42]} 15. cxd6 {[%clk 0:02:35]}  Qxd6 {[%clk 0:02:43]} 16. b5 {[%clk 0:02:29]}  axb5 {[%clk 0:02:41]} 17. axb5 {[%clk 0:02:30]}  c5 {[%clk 0:02:39]} 18. Nd2 {[%clk 0:02:28]}  Bd5 {[%clk 0:02:37]} 19. Nc4 {[%clk 0:02:25]}  Qe6 {[%clk 0:02:37]} 20. Qb3 {[%clk 0:02:12]}  Bxg2 {[%clk 0:02:26]} 21. Kxg2 {[%clk 0:02:13]}  Nd5 {[%clk 0:02:24]} 22. Ne3 {[%clk 0:02:04]}  Nxe3+ {[%clk 0:01:23]} 23. fxe3 {[%clk 0:02:04]}  Qg4 {[%clk 0:01:22]} 24. Kh1 {[%clk 0:01:33]}  h5 {[%clk 0:01:05]} 25. Ra1 {[%clk 0:01:13]}  h4 {[%clk 0:01:02]} 26. Qc4 {[%clk 0:01:12]}  Qxc4 {[%clk 0:00:50]} 27. dxc4 {[%clk 0:01:13]}  hxg3 {[%clk 0:00:50]} 28. hxg3 {[%clk 0:01:13]}  f6 {[%clk 0:00:50]} 29. Kg2 {[%clk 0:01:07]}  e4 {[%clk 0:00:43]} 30. g4 {[%clk 0:01:04]}  Rxa1 {[%clk 0:00:15]} 31. Rxa1 {[%clk 0:01:03]}  f5 {[%clk 0:00:16]} 32. Ra7 {[%clk 0:00:55]}  Rf7 {[%clk 0:00:14]} 33. Kg3 {[%clk 0:00:47]}  f4+ {[%clk 0:00:13]} 34. Kf2 {[%clk 0:00:41]}  f3 {[%clk 0:00:13]} 35. exf3 {[%clk 0:00:39]}  Rxf3+ {[%clk 0:00:11]} 36. Ke2 {[%clk 0:00:39]}  Rf7 {[%clk 0:00:12]} 37. Ra8+ {[%clk 0:00:31]}  Kh7 {[%clk 0:00:12]} 38. Re8 {[%clk 0:00:31]}  Re7 {[%clk 0:00:04]} 39. Rd8 {[%clk 0:00:30]}  Rf7 {[%clk 0:00:03]} 40. Rd5 {[%clk 0:00:28]}  b6 {[%clk 0:00:03]} 41. Rh5+ {[%clk 0:00:18]}  Kg8 {[%clk 0:00:03]} 42. Rg5 {[%clk 0:00:19]}  Nf8 {[%clk 0:00:03]} 43. Re5 {[%clk 0:00:17]}  Ra7 {[%clk 0:00:03]} 44. Rxe4 {[%clk 0:00:17]}  Kf7 {[%clk 0:00:03]} 45. Rf4+ {[%clk 0:00:17]}  Kg8 {[%clk 0:00:04]} 46. Rf5 {[%clk 0:00:16]}  Ne6 {[%clk 0:00:04]} 47. Re5 {[%clk 0:00:15]}  Kf7 {[%clk 0:00:03]} 48. Rf5+ {[%clk 0:00:13]}  Ke7 {[%clk 0:00:04]} 49. Rd5 {[%clk 0:00:13]}  Ra2+ {[%clk 0:00:03]} 50. Bd2 {[%clk 0:00:12]}  Ra7 {[%clk 0:00:03]} 51. Kd3 {[%clk 0:00:10]}  Kf7 {[%clk 0:00:03]} 52. Rf5+ {[%clk 0:00:09]}  Ke7 {[%clk 0:00:03]} 53. Bc3 {[%clk 0:00:10]}  Rd7+ {[%clk 0:00:03]} 54. Rd5 {[%clk 0:00:10]}  Ra7 {[%clk 0:00:03]} 55. Be5 {[%clk 0:00:06]}  Ra3+ {[%clk 0:00:03]} 56. Ke4 {[%clk 0:00:05]}  Ra4 {[%clk 0:00:03]} 57. Kd3 {[%clk 0:00:04]}  Ra3+ {[%clk 0:00:04]} 58. Bc3 {[%clk 0:00:05]}  Ra7 {[%clk 0:00:02]} 59. Rh5 {[%clk 0:00:05]}  Kf7 {[%clk 0:00:03]} 60. Rh8 {[%clk 0:00:05]}  Rd7+ {[%clk 0:00:03]} 61. Kc2 {[%clk 0:00:06]}  Ng5 {[%clk 0:00:03]} 62. Rb8 {[%clk 0:00:05]}  Rd6 {[%clk 0:00:04]} 63. Rb7+ {[%clk 0:00:05]}  Ke6 {[%clk 0:00:04]} 64. Rxg7 {[%clk 0:00:05]}  Ne4 {[%clk 0:00:04]} 65. Rg6+ {[%clk 0:00:06]}  Kd7 {[%clk 0:00:04]} 66. Rxd6+ {[%clk 0:00:07]}  Kxd6 {[%clk 0:00:05]} 67. Kd3 {[%clk 0:00:07]}  Ng5 {[%clk 0:00:05]} 68. Be1 {[%clk 0:00:06]}  Nf3 {[%clk 0:00:05]} 69. Bg3+ {[%clk 0:00:07]}  Kd7 {[%clk 0:00:05]} 70. Bf4 {[%clk 0:00:07]}  Ne1+ {[%clk 0:00:03]} 71. Ke4 {[%clk 0:00:07]}  Nc2 {[%clk 0:00:03]} 72. g5 {[%clk 0:00:07]}  Na3 {[%clk 0:00:03]} 73. Kd5 {[%clk 0:00:06]}  Nc2 {[%clk 0:00:02]} 74. g6 {[%clk 0:00:07]}  Ke7 {[%clk 0:00:02]} 75. Bg5+ {[%clk 0:00:07]}  Kf8 {[%clk 0:00:03]} 76. Bh6+ {[%clk 0:00:08]}  Kg8 {[%clk 0:00:03]} 77. Kc6 {[%clk 0:00:06]}  Na3 {[%clk 0:00:03]} 78. Kxb6 {[%clk 0:00:06]}  Nxc4+ {[%clk 0:00:04]} 79. Kxc5 {[%clk 0:00:07]}  Ne5 {[%clk 0:00:04]} 80. b6 {[%clk 0:00:07]}  Nd7+ {[%clk 0:00:01]} 81. Kb5 {[%clk 0:00:04]} 1-0


[Site "https://www.chess.com"]

[Event "Titled Tuesday Blitz January 17 Early 2023"]
[White "Aloma Vidal, Robert"]
[Black "Buchenau, Frank"]
[WhiteFideId "2260409"]
[BlackFideId "4604350"]
[WhiteElo "2442"]
[BlackElo "2222"]
[Result "1-0"]
[Round "03"]
[TimeControl "180+2"]
[Date "2023.01.17"]
[WhiteClock "0:02:21"]
[BlackClock "0:02:11"]

1. e4 {[%clk 0:03:00]}  e6 {[%clk 0:02:53]} 2. d4 {[%clk 0:03:00]}  d5 {[%clk 0:02:53]} 3. e5 {[%clk 0:03:01]}  c5 {[%clk 0:02:53]} 4. c3 {[%clk 0:03:02]}  Qb6 {[%clk 0:02:53]} 5. Nf3 {[%clk 0:03:01]}  Bd7 {[%clk 0:02:53]} 6. Bd3 {[%clk 0:03:02]}  cxd4 {[%clk 0:02:52]} 7. O-O {[%clk 0:02:54]}  dxc3 {[%clk 0:02:49]} 8. Nxc3 {[%clk 0:02:47]}  Ne7 {[%clk 0:02:48]} 9. Be3 {[%clk 0:02:42]}  Qd8 {[%clk 0:02:47]} 10. Qb3 {[%clk 0:02:34]}  Nbc6 {[%clk 0:02:41]} 11. Qxb7 {[%clk 0:02:26]}  Rb8 {[%clk 0:02:38]} 12. Nb5 {[%clk 0:02:23]}  Ng6 {[%clk 0:02:12]} 13. Nc7+ {[%clk 0:02:22]}  Ke7 {[%clk 0:02:11]} 14. Bc5# {[%clk 0:02:21]} 1-0


[Site "https://www.chess.com"]